fUST/lending_fUST_20240824
["ID","MTS","AMOUNT","RATE_DAILY","PERIOD"]
[335776201,1724487041673,-500.0,0.00013698,2]
[335776203,1724487041683,-500.0,0.00013698,2]
[335776205,1724487041692,-500.0,0.00013698,2]
[335776207,1724487041702,-500.0,0.00013698,2]
[335776209,1724487041712,-830.58,0.00013698,2]
[335776211,1724487041722,-500.0,0.00013698,2]
[335776214,1724487041732,-500.0,0.00013698,2]
[335776216,1724487041742,-500.0,0.00013698,2]
[335776218,1724487041751,-645.69,0.00013698,2]
[335776220,1724487041761,-610.71,0.00013698,2]
[335776222,1724487041772,-500.0,0.00013698,2]
[335776224,1724487041781,-741.88,0.00013698,2]
[335776226,1724487041791,-1187.38,0.00013698,2]
[335776228,1724487041801,-544.45,0.00013698,2]
[335776230,1724487041811,-500.0,0.00013698,2]
[335776232,1724487041820,-566.86701025,0.00013698,2]
[335776234,1724487041830,-500.0,0.00013698,2]
[335776236,1724487041839,-558.76,0.00013698,2]
[335776238,1724487041849,-500.0,0.00013698,2]
[335776240,1724487041859,-2035.96,0.00013698,2]
[335776243,1724487041869,-757.48,0.00013698,2]
[335776245,1724487041878,-500.0,0.00013698,2]
[335776247,1724487041888,-500.0,0.00013698,2]
[335776249,1724487041901,-1183.17,0.00013698,2]
[335776251,1724487041911,-500.0,0.00013698,2]
[335776253,1724487041922,-557.31,0.00013698,2]
[335776255,1724487041932,-500.61120877,0.00013698,2]
[335776257,1724487041943,-500.0,0.00013698,2]
[335776259,1724487041955,-500.0,0.00013698,2]
[335776262,1724487041967,-500.0,0.00013698,2]
[335776264,1724487041977,-500.0,0.00013698,2]
[335776266,1724487041987,-667.64,0.00013698,2]
[335776268,1724487041997,-542.63,0.00013698,2]
[335776270,1724487042006,-500.0,0.00013698,2]
[335776272,1724487042016,-717.06,0.00013698,2]
[335776274,1724487042026,-500.0,0.00013698,2]
[335776276,1724487042035,-578.63,0.00013698,2]
[335776278,1724487042046,-571.92,0.00013698,2]
[335776280,1724487042055,-795.45,0.00013698,2]
[335776282,1724487042065,-1246.17,0.00013698,2]
[335776284,1724487042078,-506.58545164,0.00013698,2]
[335776286,1724487042088,-949.1,0.00013698,2]
[335776288,1724487042099,-1352.62,0.00013698,2]
[335776291,1724487042109,-500.0,0.00013698,2]
[335776293,1724487042119,-500.0,0.00013698,2]
[335776295,1724487042128,-500.0,0.00013698,2]
[335776297,1724487042137,-500.0,0.00013698,2]
[335776299,1724487042147,-500.0,0.00013698,2]
[335776301,1724487042157,-299.67801397,0.00013698,2]
[335776303,1724487042166,-1246.53,0.00013698,2]
[335776305,1724487042176,-1495.87,0.00013698,2]
[335776307,1724487042185,-500.0,0.00013698,2]
[335776309,1724487042195,-500.0,0.00013698,2]
[335776311,1724487042205,-500.0,0.00013698,2]
[335776313,1724487042215,-2057.7,0.00013698,2]
[335776315,1724487042225,-500.0,0.00013698,2]
[335776317,1724487042235,-500.0,0.00013698,2]
[335776319,1724487042244,-500.0,0.00013698,2]
[335776321,1724487042254,-1000.0,0.00013698,2]
[335776323,1724487042263,-500.0,0.00013698,2]
[335776326,1724487042273,-717.25,0.00013698,2]
[335776329,1724487042282,-999.78,0.00013698,2]
[335776332,1724487042291,-500.0,0.00013698,2]
[335776335,1724487042301,-500.0,0.00013698,2]
[335776339,1724487042311,-500.0,0.00013698,2]
[335776342,1724487042321,-2096.19,0.00013698,2]
[335776345,1724487042330,-500.0,0.00013698,2]
[335776348,1724487042341,-500.0,0.00013698,2]
[335776351,1724487042350,-500.0,0.00013698,2]
[335776354,1724487042360,-646.97,0.00013698,2]
[335776359,1724487042370,-500.0,0.00013698,2]
[335776363,1724487042379,-1779.07,0.00013698,2]
[335776366,1724487042389,-500.0,0.00013698,2]
[335776391,1724487042630,-960.16,0.00013698,2]
[335776393,1724487042641,-1828.29,0.00013698,2]
[335776395,1724487042651,-718.52,0.00013698,2]
[335776398,1724487042663,-6435.76,0.00013698,2]
[335776400,1724487042673,-500.0,0.00013698,2]
[335776402,1724487042683,-459.53187077,0.00013698,2]
[335776404,1724487042694,-514.21811915,0.00013698,2]
[335776406,1724487042705,-500.0,0.00013698,2]
[335776408,1724487042715,-500.0,0.00013698,2]
[335776410,1724487042726,-2422.99,0.00013698,2]
[335776412,1724487042736,-500.0,0.00013698,2]
[335776415,1724487042747,-2015.77,0.00013698,2]
[335776417,1724487042758,-3305.34,0.00013698,2]
[335776419,1724487042767,-500.0,0.00013698,2]
[335776421,1724487042776,-500.0,0.00013698,2]
[335776423,1724487042786,-500.0,0.00013698,2]
[335776425,1724487042795,-662.09,0.00013698,2]
[335776427,1724487042804,-500.0,0.00013698,2]
[335776429,1724487042814,-1154.24,0.00013698,2]
[335776431,1724487042823,-500.0,0.00013698,2]
[335776433,1724487042832,-500.0,0.00013698,2]
[335776435,1724487042842,-500.0,0.00013698,2]
[335776437,1724487042852,-955.86,0.00013698,2]
[335776439,1724487042861,-500.0,0.00013698,2]
[335776441,1724487042872,-3634.42,0.00013698,2]
[335776443,1724487042881,-500.0,0.00013698,2]
[335776445,1724487042890,-500.0,0.00013698,2]
[335776447,1724487042899,-500.0,0.00013698,2]
[335776450,1724487042908,-500.0,0.00013698,2]
[335776452,1724487042918,-500.0,0.00013698,2]
[335776454,1724487042927,-500.0,0.00013698,2]
[335776456,1724487042936,-594.5,0.00013698,2]
[335776460,1724487042946,-500.0,0.00013698,2]
[335776463,1724487042955,-8203.82,0.00013698,2]
[335776466,1724487042965,-500.0,0.00013698,2]
[335776468,1724487042974,-500.0,0.00013698,2]
[335776470,1724487042983,-649.7,0.00013698,2]
[335776472,1724487042992,-1203.38,0.00013698,2]
[335776474,1724487043001,-500.0,0.00013698,2]
[335776476,1724487043011,-8912.7,0.00013698,2]
[335776478,1724487043021,-501.32545482,0.00013698,2]
[335776480,1724487043031,-2172.38,0.00013698,2]
[335776482,1724487043041,-885.01,0.00013698,2]
[335776484,1724487043050,-5774.5,0.00013698,2]
[335776486,1724487043059,-500.0,0.00013698,2]
[335776488,1724487043068,-582.34985091,0.00013698,2]
[335776490,1724487043078,-3365.03,0.00013698,2]
[335776492,1724487043089,-952.39,0.00013698,2]
[335776494,1724487043099,-694.98,0.00013698,2]
[335776496,1724487043109,-500.0,0.00013698,2]
[335776498,1724487043119,-776.06,0.00013698,2]
[335776500,1724487043129,-10970.33,0.00013698,2]
[335776502,1724487043138,-500.0,0.00013698,2]
[335776504,1724487043147,-1279.19,0.00013698,2]
[335776506,1724487043157,-500.0,0.00013698,2]
[335776508,1724487043167,-924.23,0.00013698,2]
[335776510,1724487043176,-886.37,0.00013698,2]
[335776512,1724487043186,-500.0,0.00013698,2]
[335776514,1724487043195,-502.22111403,0.00013698,2]
[335776516,1724487043204,-686.07,0.00013698,2]
[335776518,1724487043214,-660.99,0.00013698,2]
[335776520,1724487043223,-611.41,0.00013698,2]
[335776522,1724487043233,-500.0,0.00013698,2]
[335776524,1724487043242,-500.0,0.00013698,2]
[335776526,1724487043251,-500.0,0.00013698,2]
[335776528,1724487043261,-232.57120854,0.00013698,2]
[335776530,1724487043271,-500.0,0.00013698,2]
[335776532,1724487043280,-500.0,0.00013698,2]
[335776534,1724487043289,-500.0,0.00013698,2]
[335776535,1724487043299,-962.52,0.00013698,2]
[335776537,1724487043309,-500.0,0.00013698,2]
[335776540,1724487043319,-824.41,0.00013698,2]
[335776542,1724487043329,-972.79,0.00013698,2]
[335776544,1724487043339,-4528.33,0.00013698,2]
[335776546,1724487043349,-500.0,0.00013698,2]
[335776548,1724487043358,-749.33,0.00013698,2]
[335776550,1724487043367,-500.0,0.00013698,2]
[335776552,1724487043377,-1336.19,0.00013698,2]
[335776554,1724487043386,-1310.45,0.00013698,2]
[335776556,1724487043395,-1507.86,0.00013698,2]
[335776558,1724487043404,-5334.97,0.00013698,2]
[335776560,1724487043414,-500.0,0.00013698,2]
[335776562,1724487043424,-500.0,0.00013698,2]
[335776564,1724487043434,-2212.87,0.00013698,2]
[335776566,1724487043446,-1220.24,0.00013698,2]
[335776568,1724487043457,-961.68,0.00013698,2]
[335776571,1724487043468,-500.0,0.00013698,2]
[335776573,1724487043477,-500.0,0.00013698,2]
[335776575,1724487043488,-1749.37,0.00013698,2]
[335776577,1724487043499,-500.0,0.00013698,2]
[335776579,1724487043511,-979.82,0.00013698,2]
[335776581,1724487043522,-500.0,0.00013698,2]
[335776583,1724487043532,-973.4,0.00013698,2]
[335776586,1724487043542,-662.48,0.00013698,2]
[335776588,1724487043553,-500.0,0.00013698,2]
[335776590,1724487043562,-507.45,0.00013698,2]
[335776592,1724487043575,-500.0,0.00013698,2]
[335776594,1724487043585,-679.24,0.00013698,2]
[335776596,1724487043596,-9144.11,0.00013698,2]
[335776598,1724487043606,-585.67,0.00013698,2]
[335776601,1724487043618,-2286.49,0.00013698,2]
[335776603,1724487043629,-500.0,0.00013698,2]
[335776605,1724487043639,-606.39,0.00013698,2]
[335776607,1724487043649,-500.0,0.00013698,2]
[335776609,1724487043662,-500.0,0.00013698,2]
[335776612,1724487043672,-500.0,0.00013698,2]
[335776614,1724487043681,-170.87905401,0.00013698,2]
[335776616,1724487043692,-3223.57,0.00013698,2]
[335776618,1724487043702,-3165.0,0.00013698,2]
[335776620,1724487043712,-1228.21,0.00013698,2]
[335776622,1724487043721,-1396.82,0.00013698,2]
[335776624,1724487043731,-500.0,0.00013698,2]
[335776626,1724487043740,-1353.58,0.00013698,2]
[335776628,1724487043752,-500.0,0.00013698,2]
[335776630,1724487043762,-787.3,0.00013698,2]
[335776632,1724487043771,-500.0,0.00013698,2]
[335776634,1724487043781,-2709.26,0.00013698,2]
[335776636,1724487043792,-4480.24,0.00013698,2]
[335776638,1724487043802,-704.2,0.00013698,2]
[335776640,1724487043812,-500.0,0.00013698,2]
[335776642,1724487043822,-6595.14,0.00013698,2]
[335776645,1724487043834,-500.0,0.00013698,2]
[335776647,1724487043844,-13489.51,0.00013698,2]
[335776649,1724487043854,-500.0,0.00013698,2]
[335776651,1724487043865,-500.0,0.00013698,2]
[335776653,1724487043875,-2895.11,0.00013698,2]
[335776655,1724487043885,-571.34,0.00013698,2]
[335776657,1724487043894,-500.0,0.00013698,2]
[335776659,1724487043905,-2912.36,0.00013698,2]
[335776661,1724487043915,-854.83,0.00013698,2]
[335776663,1724487043925,-500.0,0.00013698,2]
[335776666,1724487043936,-9723.37,0.00013698,2]
[335776668,1724487043948,-516.03,0.00013698,2]
[335776670,1724487043958,-2106.12,0.00013698,2]
[335776672,1724487043968,-500.0,0.00013698,2]
[335776674,1724487043977,-1285.59,0.00013698,2]
[335776676,1724487043986,-500.0,0.00013698,2]
[335776678,1724487043995,-500.0,0.00013698,2]
[335776680,1724487044006,-500.0,0.00013698,2]
[335776682,1724487044017,-684.94,0.00013698,2]
[335776684,1724487044027,-2045.13,0.00013698,2]
[335776687,1724487044037,-1636.72,0.00013698,2]
[335776689,1724487044048,-2251.72,0.00013698,2]
[335776691,1724487044057,-500.0,0.00013698,2]
[335776693,1724487044068,-701.08,0.00013698,2]
[335776695,1724487044078,-1557.63,0.00013698,2]
[335776697,1724487044087,-1031.43,0.00013698,2]
[335776699,1724487044102,-367.59306205,0.00013698,2]
[335776701,1724487044111,-1866.86,0.00013698,2]
[335776703,1724487044121,-1839.91,0.00013698,2]
[335776705,1724487044130,-500.0,0.00013698,2]
[335776707,1724487044141,-500.0,0.00013698,2]
[335776709,1724487044152,-527.98,0.00013698,2]
[335776712,1724487044163,-1712.95,0.00013698,2]
[335776714,1724487044174,-500.0,0.00013698,2]
[335776716,1724487044185,-1984.97,0.00013698,2]
[335776718,1724487044195,-500.0,0.00013698,2]
[335776720,1724487044205,-604.65792644,0.00013698,2]
[335776723,1724487044215,-11919.73,0.00013698,2]
[335776725,1724487044225,-19213.3,0.00013698,2]
[335776727,1724487044236,-523.84,0.00013698,2]
[335776729,1724487044248,-500.0,0.00013698,2]
[335776731,1724487044258,-2182.36,0.00013698,2]
[335776734,1724487044270,-651.19,0.00013698,2]
[335776736,1724487044281,-500.0,0.00013698,2]
[335776738,1724487044290,-1089.05,0.00013698,2]
[335776740,1724487044299,-501.41627192,0.00013698,2]
[335776742,1724487044308,-500.0,0.00013698,2]
[335776744,1724487044317,-668.0,0.00013698,2]
[335776746,1724487044326,-1843.02,0.00013698,2]
[335776748,1724487044336,-4235.08,0.00013698,2]
[335776750,1724487044345,-500.0,0.00013698,2]
[335776752,1724487044354,-906.55,0.00013698,2]
[335776754,1724487044363,-719.94,0.00013698,2]
[335776756,1724487044372,-883.35,0.00013698,2]
[335776758,1724487044381,-500.0,0.00013698,2]
[335776760,1724487044390,-3142.19,0.00013698,2]
[335776762,1724487044399,-500.0,0.00013698,2]
[335776764,1724487044408,-1250.86,0.00013698,2]
[335776766,1724487044417,-2651.58,0.00013698,2]
[335776768,1724487044427,-555.86252901,0.00013698,2]
[335776770,1724487044436,-798.77,0.00013698,2]
[335776772,1724487044445,-4347.42,0.00013698,2]
[335776774,1724487044454,-601.44,0.00013698,2]
[335776776,1724487044463,-1197.21,0.00013698,2]
[335776778,1724487044473,-500.0,0.00013698,2]
[335776780,1724487044482,-500.0,0.00013698,2]
[335776782,1724487044491,-500.0,0.00013698,2]
[335776784,1724487044500,-500.0,0.00013698,2]
[335776786,1724487044509,-500.0,0.00013698,2]
[335776788,1724487044518,-500.0,0.00013698,2]
[335776790,1724487044527,-1822.62,0.00013698,2]
[335776792,1724487044537,-188.06219521,0.00013698,2]
[335776794,1724487044547,-13187.3,0.00013698,2]
[335776797,1724487044556,-500.0,0.00013698,2]
[335776799,1724487044567,-826.82,0.00013698,2]
[335776800,1724487044576,-3556.95,0.00013698,2]
[335776803,1724487044585,-3554.84,0.00013698,2]
[335776805,1724487044595,-500.0,0.00013698,2]
[335776807,1724487044604,-599.99,0.00013698,2]
[335776809,1724487044615,-547.77,0.00013698,2]
[335776811,1724487044624,-3000.0,0.00013699,2]
[335776813,1724487044634,-703.189278,0.00013699,2]
[335776815,1724487044644,-500.0,0.00013699,2]
[335776817,1724487044653,-500.0,0.00013699,2]
[335776819,1724487044663,-500.0,0.00013699,2]
[335776821,1724487044672,-500.0,0.00013699,2]
[335776823,1724487044681,-174.42791608,0.00013699,2]
[335776824,1724487044691,-500.0,0.00013699,2]
[335776825,1724487044700,-500.0,0.00013699,2]
[335776826,1724487044710,-500.0,0.00013699,2]
[335776827,1724487044719,-500.0,0.00013699,2]
[335776828,1724487044728,-500.0,0.00013699,2]
[335776829,1724487044737,-500.0,0.00013699,2]
[335776830,1724487044747,-194.91980144,0.00013699,2]
[335776831,1724487044756,-153.0,0.000137,2]
[335776832,1724487044765,-168.96894699,0.00013735,2]
[335776833,1724487044774,-468.34369909,0.00013764,2]
[335776834,1724487044783,-150.112233,0.000138,2]
[335776835,1724487044793,-168.96894699,0.00013804,2]
[335776836,1724487044802,-250.0,0.00013823,2]
[335776837,1724487044812,-153.0,0.00013867,2]
[335776838,1724487044821,-153.0,0.00013867,2]
[335776839,1724487044830,-153.0,0.00013867,2]
[335776840,1724487044839,-153.0,0.00013867,2]
[335776841,1724487044849,-153.0,0.00013867,2]
[335776842,1724487044858,-153.0,0.00013867,2]
[335776843,1724487044867,-153.0,0.00013867,2]
[335776844,1724487044877,-153.0,0.00013867,2]
[335776845,1724487044886,-153.0,0.00013867,2]
[335776846,1724487044896,-153.0,0.00013867,2]
[335776848,1724487044905,-153.0,0.00013867,2]
[335776850,1724487044915,-153.0,0.00013867,2]
[335776852,1724487044924,-153.0,0.00013867,2]
[335776854,1724487044933,-153.0,0.00013867,2]
[335776856,1724487044942,-153.0,0.00013867,2]
[335776858,1724487044951,-153.0,0.00013867,2]
[335776860,1724487044961,-153.0,0.00013867,2]
[335776862,1724487044970,-153.0,0.00013867,2]
[335776864,1724487044979,-153.0,0.00013867,2]
[335776866,1724487044988,-153.0,0.00013867,2]
[335776868,1724487044998,-153.0,0.00013867,2]
[335776870,1724487045007,-153.0,0.00013867,2]
[335776872,1724487045016,-153.0,0.00013867,2]
[335776874,1724487045025,-153.0,0.00013867,2]
[335776876,1724487045034,-153.0,0.00013867,2]
[335776878,1724487045044,-153.0,0.00013867,2]
[335776880,1724487045053,-153.0,0.00013867,2]
[335776882,1724487045062,-153.0,0.00013867,2]
[335776884,1724487045071,-153.0,0.00013867,2]
[335776886,1724487045080,-153.0,0.00013867,2]
[335776888,1724487045090,-153.0,0.00013867,2]
[335776890,1724487045100,-153.0,0.00013867,2]
[335776892,1724487045109,-153.0,0.00013867,2]
[335776894,1724487045118,-153.0,0.00013867,2]
[335776896,1724487045127,-153.0,0.00013867,2]
[335776898,1724487045136,-153.0,0.00013867,2]
[335776900,1724487045147,-153.0,0.00013867,2]
[335776902,1724487045155,-153.0,0.00013867,2]
[335776904,1724487045164,-153.0,0.00013867,2]
[335776906,1724487045173,-153.0,0.00013867,2]
[335776908,1724487045182,-153.0,0.00013867,2]
[335776910,1724487045191,-153.0,0.00013867,2]
[335776912,1724487045201,-153.0,0.00013867,2]
[335776914,1724487045210,-153.0,0.00013867,2]
[335776916,1724487045219,-153.0,0.00013867,2]
[335776918,1724487045228,-153.0,0.00013867,2]
[335776921,1724487045237,-153.0,0.00013867,2]
[335776924,1724487045247,-153.0,0.00013867,2]
[335776927,1724487045256,-153.0,0.00013867,2]
[335776931,1724487045266,-153.0,0.00013867,2]
[335776935,1724487045275,-153.0,0.00013867,2]
[335776937,1724487045284,-153.0,0.00013867,2]
[335776939,1724487045293,-153.0,0.00013867,2]
[335776941,1724487045303,-153.0,0.00013867,2]
[335776943,1724487045312,-153.0,0.00013867,2]
[335776945,1724487045322,-153.0,0.00013867,2]
[335776947,1724487045331,-153.0,0.00013867,2]
[335776949,1724487045340,-153.0,0.00013867,2]
[335776951,1724487045350,-153.0,0.00013867,2]
[335776953,1724487045360,-153.0,0.00013867,2]
[335776955,1724487045369,-153.0,0.00013867,2]
[335776957,1724487045378,-153.0,0.00013867,2]
[335776959,1724487045387,-153.0,0.00013867,2]
[335776962,1724487045396,-153.0,0.00013867,2]
[335776964,1724487045406,-153.0,0.00013867,2]
[335776965,1724487045415,-153.0,0.00013867,2]
[335776966,1724487045425,-153.0,0.00013867,2]
[335776967,1724487045434,-153.0,0.00013867,2]
[335776968,1724487045443,-153.0,0.00013867,2]
[335776969,1724487045452,-153.0,0.00013867,2]
[335776970,1724487045461,-153.0,0.00013867,2]
[335776971,1724487045471,-153.0,0.00013867,2]
[335776972,1724487045482,-153.0,0.00013867,2]
[335776973,1724487045493,-153.0,0.00013867,2]
[335776974,1724487045502,-153.0,0.00013867,2]
[335776975,1724487045513,-153.0,0.00013867,2]
[335776976,1724487045525,-153.0,0.00013867,2]
[335776977,1724487045534,-153.0,0.00013868,2]
[335776978,1724487045543,-153.0,0.00013868,2]
[335776980,1724487045553,-153.0,0.00013868,2]
[335776982,1724487045563,-153.0,0.00013868,2]
[335776984,1724487045572,-153.0,0.00013868,2]
[335776986,1724487045583,-153.0,0.00013868,2]
[335776987,1724487045592,-153.0,0.00013868,2]
[335776988,1724487045602,-153.0,0.00013868,2]
[335776990,1724487045612,-153.0,0.00013868,2]
[335776992,1724487045621,-153.0,0.00013868,2]
[335776994,1724487045631,-153.0,0.00013868,2]
[335776997,1724487045641,-153.0,0.00013868,2]
[335776999,1724487045650,-153.0,0.00013868,2]
[335777001,1724487045663,-153.0,0.00013868,2]
[335777003,1724487045672,-153.0,0.00013868,2]
[335777004,1724487045681,-153.0,0.00013868,2]
[335777005,1724487045690,-153.0,0.00013868,2]
[335777006,1724487045700,-153.0,0.00013868,2]
[335777007,1724487045710,-153.0,0.00013868,2]
[335777008,1724487045719,-153.0,0.00013868,2]
[335777009,1724487045731,-153.0,0.00013868,2]
[335777010,1724487045743,-153.0,0.00013868,2]
[335777011,1724487045755,-153.0,0.00013868,2]
[335777012,1724487045925,-153.0,0.00013868,2]
[335777013,1724487045934,-153.0,0.00013868,2]
[335777014,1724487045944,-153.0,0.00013868,2]
[335777015,1724487045953,-168.96894699,0.00013872,2]
[335777016,1724487045963,-5566.29483473,0.00013879,2]
[335777017,1724487045972,-150.112233,0.000139,2]
[335777019,1724487045981,-150.112233,0.000139,2]
[335777020,1724487045990,-150.112233,0.000139,2]
[335777023,1724487046002,-747.09366375,0.000139,4]
[335777060,1724487046821,-153.0,0.00013867,2]
[335777061,1724487046833,-153.0,0.00013867,2]
[335777062,1724487046842,-153.0,0.00013867,2]
[335777063,1724487046854,-1613.27717097,0.000139,4]
[335777064,1724487046863,-150.0,0.00013951,2]
[335777065,1724487046873,-2596.97571274,0.00013971,2]
[335777066,1724487046882,-4454.63590667,0.00013972,9]
[335777067,1724487046894,-66044.28884432,0.00013972,9]
[335777068,1724487046903,-828.900831,0.00013972,2]
[335777069,1724487046914,-828.900831,0.00013972,2]
[335777070,1724487046924,-828.900831,0.00013972,2]
[335777071,1724487046935,-828.900831,0.00013972,2]
[335777072,1724487046947,-245.56444243,0.00013972,2]
[335777073,1724487046957,-510.20133375,0.00013972,2]
[335777074,1724487046967,-531.46188405,0.00013972,2]
[335777075,1724487046977,-519.28,0.00013972,2]
[335777076,1724487046986,-500.0,0.00013972,2]
[335777077,1724487046996,-778.82,0.00013972,2]
[335777078,1724487047007,-741.51,0.00013972,2]
[335777079,1724487047018,-553.9,0.00013972,2]
[335777080,1724487047027,-500.0,0.00013972,2]
[335777081,1724487047038,-500.0,0.00013972,2]
[335777082,1724487047047,-500.0,0.00013972,2]
[335777083,1724487047057,-500.0,0.00013972,2]
[335777084,1724487047066,-797.14,0.00013972,2]
[335777085,1724487047076,-500.0,0.00013972,2]
[335777086,1724487047085,-500.0,0.00013972,2]
[335777087,1724487047095,-557.03,0.00013972,2]
[335777089,1724487047104,-697.23,0.00013972,2]
[335777091,1724487047114,-500.0,0.00013972,2]
[335777093,1724487047124,-411.2278529,0.00013972,2]
[335777095,1724487047134,-500.0,0.00013972,2]
[335777097,1724487047144,-500.0,0.00013972,2]
[335777099,1724487047154,-568.79,0.00013972,2]
[335777101,1724487047164,-500.0,0.00013972,2]
[335777103,1724487047175,-500.0,0.00013972,2]
[335777105,1724487047184,-676.42,0.00013972,2]
[335777107,1724487047194,-500.0,0.00013972,2]
[335777109,1724487047205,-500.0,0.00013972,2]
[335777112,1724487047217,-500.0,0.00013972,2]
[335777114,1724487047227,-500.0,0.00013972,2]
[335777116,1724487047237,-500.0,0.00013972,2]
[335777118,1724487047248,-536.42,0.00013972,2]
[335777120,1724487047260,-500.0,0.00013972,2]
[335777122,1724487047270,-500.0,0.00013972,2]
[335777125,1724487047280,-500.0,0.00013972,2]
[335777127,1724487047290,-500.0,0.00013972,2]
[335777129,1724487047301,-500.0,0.00013972,2]
[335777131,1724487047311,-565.65,0.00013972,2]
[335777133,1724487047322,-500.0,0.00013972,2]
[335777135,1724487047332,-297.07315214,0.00013972,2]
[335777137,1724487047343,-537.94989051,0.00013972,2]
[335777151,1724487047658,-1667.57010949,0.00013972,2]
[335777153,1724487047668,-500.0,0.00013972,2]
[335777155,1724487047679,-500.0,0.00013972,2]
[335777157,1724487047690,-500.0,0.00013972,2]
[335777159,1724487047701,-500.0,0.00013972,2]
[335777162,1724487047712,-500.0,0.00013972,2]
[335777164,1724487047722,-500.0,0.00013972,2]
[335777166,1724487047732,-500.0,0.00013972,2]
[335777168,1724487047743,-671.32,0.00013972,2]
[335777170,1724487047754,-500.0,0.00013972,2]
[335777172,1724487047765,-500.0,0.00013972,2]
[335777174,1724487047774,-503.91676936,0.00013972,2]
[335777176,1724487047784,-500.0,0.00013972,2]
[335777179,1724487047795,-500.0,0.00013972,2]
[335777181,1724487047807,-500.0,0.00013972,2]
[335777183,1724487047816,-500.0,0.00013972,2]
[335777185,1724487047826,-500.0,0.00013972,2]
[335777187,1724487047835,-500.0,0.00013972,2]
[335777189,1724487047845,-500.0,0.00013972,2]
[335777191,1724487047855,-500.0,0.00013972,2]
[335777193,1724487047864,-807.09,0.00013972,2]
[335777195,1724487047873,-867.0,0.00013972,2]
[335777197,1724487047882,-500.0,0.00013972,2]
[335777199,1724487047892,-500.0,0.00013972,2]
[335777201,1724487047901,-500.0,0.00013972,2]
[335777203,1724487047910,-500.0,0.00013972,2]
[335777205,1724487047921,-500.0,0.00013972,2]
[335777207,1724487047931,-500.0,0.00013972,2]
[335777209,1724487047942,-500.0,0.00013972,2]
[335777211,1724487047953,-500.0,0.00013972,2]
[335777213,1724487047964,-500.0,0.00013972,2]
[335777216,1724487047974,-626.07,0.00013972,2]
[335777218,1724487047984,-500.0,0.00013972,2]
[335777220,1724487047993,-500.0,0.00013972,2]
[335777222,1724487048002,-500.0,0.00013972,2]
[335777224,1724487048011,-504.75790496,0.00013972,2]
[335777226,1724487048021,-500.0,0.00013972,2]
[335777228,1724487048030,-500.0,0.00013972,2]
[335777230,1724487048040,-500.0,0.00013972,2]
[335777232,1724487048050,-190.423462,0.00013972,2]
[335777288,1724487049388,-1439.83,0.00013698,2]
[335777289,1724487049397,-135.626538,0.00013972,2]
[335777290,1724487049408,-220.16,0.00013972,2]
[335777291,1724487049418,-500.0,0.00013972,2]
[335777292,1724487049427,-500.0,0.00013972,2]